bitfinex-derivatives/quotes_BTCF0:USTF0_20251120
["timestamp","ask_amount","ask_price","bid_price","bid_amount"]
[1763650012932,0.000165,90956.0,90954.0,0.0110048]
[1763650013131,0.3608,90968.0,90965.0,0.0110034]
[1763650013326,0.36299802,90968.0,90967.0,0.00073268]
[1763650013834,0.00219802,90968.0,90967.0,0.00073268]
[1763650014032,0.3608,90989.0,90974.0,0.0110023]
[1763650014228,0.0001649,90977.0,90975.0,0.00073268]
[1763650014433,0.00219802,90976.0,90975.0,0.00073268]
[1763650015034,0.3608,90998.0,90981.0,0.0110015]
[1763650015328,0.3608,90998.0,90984.0,0.03627]
[1763650015329,0.00219802,90997.0,90984.0,0.03627]
[1763650015534,0.00219802,90997.0,90985.0,0.00073268]
[1763650015729,0.3608,90987.0,90967.0,0.001]
[1763650015928,0.00219802,90968.0,90967.0,0.001]
[1763650016130,0.00010875,90977.0,90967.0,0.00073268]
[1763650016329,0.00219802,90976.0,90969.0,0.3608]
[1763650016534,0.00219802,90976.0,90975.0,0.00073268]
[1763650016836,0.36299802,90976.0,90975.0,0.00073268]
[1763650017133,0.00219802,90976.0,90975.0,0.05832268]
[1763650017329,0.00219802,90976.0,90975.0,0.00073268]
[1763650017530,0.00219802,90976.0,90967.0,0.001]
[1763650017731,0.3608,90969.0,90968.0,0.00073268]
[1763650017938,0.36299802,90969.0,90968.0,0.00073268]
[1763650018235,0.3608,90969.0,90968.0,0.12048268]
[1763650018532,0.26851802,90969.0,90968.0,0.00073268]
[1763650019226,0.26851802,90969.0,90968.0,0.12048268]
[1763650019831,0.00219802,90969.0,90968.0,0.48228268]
[1763650020232,0.00010875,90977.0,90968.0,0.12148268]
[1763650020436,0.00010875,90977.0,90968.0,0.00173268]
[1763650020437,0.47764,90969.0,90968.0,0.00173268]
[1763650020632,0.47983802,90969.0,90942.0,0.39707]
[1763650020938,0.00219802,90969.0,90968.0,0.11975]
[1763650021126,0.00010875,90977.0,90976.0,0.1307521]
[1763650021332,0.08812421,91008.0,91007.0,0.11975]
[1763650021531,0.20716223,91008.0,90992.0,0.3608]
[1763650021731,0.20716223,91008.0,91007.0,0.00073268]
[1763650021732,0.00219802,91008.0,91007.0,0.00073268]
[1763650022435,0.1289,90999.0,90998.0,0.0001649]
[1763650022639,0.00219802,90999.0,90998.0,0.12920758]
[1763650022934,0.3608,91040.0,91029.0,0.12831]
[1763650023141,0.00219802,91035.0,91025.0,0.0001648]
[1763650023440,0.1289,91026.0,91025.0,0.00089748]
[1763650023625,0.13109802,91026.0,90997.0,0.3608]
[1763650023826,0.3608,91012.0,90998.0,0.00173268]
[1763650024022,0.3608,91000.0,90998.0,0.00173268]
[1763650024223,0.3608,91012.0,90998.0,0.06958268]
[1763650024224,0.00219802,90999.0,90998.0,0.06958268]
[1763650024432,0.3608,91023.0,90998.0,0.36153268]
[1763650024629,0.36299802,91023.0,91014.0,0.04073]
[1763650024832,0.36299802,91023.0,91019.0,0.12831]
[1763650024833,0.0001645,91020.0,91019.0,0.12831]
[1763650025030,0.002,91035.0,91019.0,0.36153268]
[1763650025334,0.00419802,91035.0,91034.0,0.12831]
[1763650025543,0.00419802,91035.0,91034.0,0.16977268]
[1763650025835,0.00419802,91035.0,91034.0,0.00073268]
[1763650026024,0.00219802,91035.0,91034.0,0.00073268]
[1763650026226,0.3608,91042.0,91034.0,0.16977268]
[1763650026433,0.00219802,91041.0,91035.0,0.3608]
[1763650026626,0.3608,91050.0,91049.0,0.12831]
[1763650026841,0.3608,91061.0,91049.0,0.12904268]
[1763650027136,0.36299802,91060.0,91051.0,0.06785]
[1763650027337,0.00219802,91060.0,91059.0,0.00073268]
[1763650027840,0.36299802,91060.0,91059.0,0.00073268]
[1763650028026,0.36299802,91060.0,91059.0,1.50073268]
[1763650028225,0.001,91061.0,91060.0,0.12831]
[1763650028430,0.00319802,91061.0,91060.0,0.12904268]
[1763650028635,0.001,91061.0,91060.0,0.12904268]
[1763650028937,0.3608,91087.0,91066.0,0.0109912]
[1763650029135,0.00219802,91085.0,91077.0,0.3608]
[1763650029339,0.3608,91108.0,91097.0,0.12831]
[1763650029540,0.36299802,91108.0,91098.0,0.00073268]
[1763650030937,0.36107435,91126.0,91107.0,0.1392963]
[1763650031237,0.00219802,91125.0,91112.0,0.3717856]
[1763650031426,0.00027435,91126.0,91124.0,0.00073268]
[1763650031627,0.3608,91145.0,91124.0,0.01171688]
[1763650031833,0.3608,91145.0,91137.0,0.0109826]
[1763650032027,0.3608,91156.0,91144.0,0.00073268]
[1763650032230,0.00219802,91155.0,91144.0,0.00073268]
[1763650032431,0.3608,91164.0,91149.0,0.04073]
[1763650032747,0.00219802,91164.0,91163.0,0.00073268]
[1763650032939,0.36299802,91164.0,91163.0,0.00073268]
[1763650033639,0.00219802,91164.0,91163.0,0.00073268]
[1763650034342,0.36299802,91164.0,91163.0,0.00073268]
[1763650034551,0.00219802,91164.0,91163.0,0.00073268]
[1763650035134,0.3608,91173.0,91163.0,0.00073268]
[1763650035340,0.00247225,91166.0,91163.0,0.00073268]
[1763650035633,0.00247225,91166.0,91153.0,0.3608]
[1763650035634,0.3608,91164.0,91153.0,0.3608]
[1763650035830,0.00219802,91163.0,91154.0,0.00073268]
[1763650036034,0.00219802,91163.0,91159.0,0.0109799]
[1763650036231,0.00027423,91166.0,91162.0,0.00073268]
[1763650036445,0.00027423,91166.0,91165.0,0.12831]
[1763650036644,0.3608,91194.0,91172.0,0.04073]
[1763650036853,0.00027411,91206.0,91172.0,0.04073]
[1763650036854,0.00027411,91206.0,91205.0,0.12831]
[1763650037045,0.00247213,91206.0,91205.0,0.12904268]
[1763650037448,0.00247213,91206.0,91205.0,0.00073268]
[1763650037650,0.40247213,91206.0,91196.0,0.00016452]
[1763650037955,0.3608,91197.0,91165.0,0.001]
[1763650038251,0.3608,91166.0,91165.0,0.00173268]
[1763650038451,0.36299802,91166.0,91165.0,0.00173268]
[1763650038642,0.49189802,91166.0,91165.0,0.001]
[1763650038842,0.36299802,91166.0,91156.0,0.00016452]
[1763650039043,0.36299802,91166.0,91156.0,0.0008972]
[1763650039538,0.3608,91157.0,91156.0,0.0008972]
[1763650039740,0.36299802,91157.0,91156.0,0.0008972]
[1763650040549,0.00219802,91157.0,91156.0,0.0008972]
[1763650040746,0.00219802,91157.0,91156.0,0.00016452]
[1763650040945,0.00219802,91157.0,91135.0,0.3608]
[1763650040946,0.11035802,91157.0,91135.0,0.3608]
[1763650041142,0.11035802,91157.0,91153.0,0.3608]
[1763650041143,0.00219802,91157.0,91153.0,0.3608]
[1763650041347,0.3608,91176.0,91153.0,0.3608]
[1763650041348,0.3608,91188.0,91176.0,0.06785]
[1763650041544,0.00219802,91187.0,91177.0,0.00073268]
[1763650042146,0.00219802,91187.0,91178.0,0.3608]
[1763650042348,0.00219802,91187.0,91186.0,0.00073268]
[1763650042739,0.13109802,91187.0,91186.0,0.00073268]
[1763650043048,0.13109802,91187.0,91175.0,0.3608]
[1763650043349,0.13109802,91187.0,91176.0,0.00073268]
[1763650043547,0.3608,91177.0,91176.0,0.00073268]
[1763650043752,0.49189802,91177.0,91173.0,0.00016452]
[1763650043948,0.49189802,91177.0,91173.0,0.0008972]
[1763650044152,0.06819,91174.0,91173.0,0.00016452]
[1763650044349,0.06819,91174.0,91149.0,0.40153]
[1763650044350,0.00219802,91174.0,91157.0,0.0109802]
[1763650044544,0.00219802,91174.0,91149.0,0.40153]
[1763650044545,0.00219802,91174.0,91173.0,0.00073268]
[1763650044750,0.00219802,91174.0,91173.0,0.12904268]
[1763650044947,0.00219802,91174.0,91173.0,0.48984268]
[1763650045142,0.001,91187.0,91182.0,0.0109773]
[1763650045343,0.001,91187.0,91186.0,0.12904268]
[1763650045344,0.00319802,91187.0,91186.0,0.12904268]
[1763650046047,0.07138802,91187.0,91186.0,0.00073268]
[1763650046439,0.07138802,91187.0,91175.0,0.00016452]
[1763650046749,0.001,91177.0,91175.0,0.0008972]
[1763650047049,0.00219802,91176.0,91175.0,0.0008972]
[1763650047252,0.00219802,91176.0,91157.0,0.001]
[1763650047253,0.13109802,91176.0,91157.0,0.001]
[1763650047448,0.3608,91169.0,91158.0,0.01171278]
[1763650047650,0.00219802,91169.0,91163.0,0.3608]
[1763650047948,0.3608,91187.0,91168.0,0.04146268]
[1763650048154,0.3608,91196.0,91186.0,0.12831]
[1763650048454,0.07038802,91187.0,91186.0,0.00073268]
[1763650048642,0.13109802,91187.0,91186.0,0.00073268]
[1763650048847,0.00219802,91187.0,91186.0,0.06547268]
[1763650049050,0.00219802,91187.0,91186.0,0.00073268]
[1763650049951,0.36299802,91187.0,91186.0,0.00073268]
[1763650050553,0.3608,91196.0,91195.0,0.06474]
[1763650050760,0.36299802,91196.0,91195.0,0.12915268]
[1763650051055,0.00219802,91196.0,91195.0,0.06547268]
[1763650051251,0.00219802,91196.0,91195.0,0.00073268]
[1763650052157,0.00219802,91196.0,91195.0,0.01170838]
[1763650052354,0.00219802,91196.0,91195.0,0.00073268]
[1763650052546,0.13887802,91196.0,91195.0,0.00073268]
[1763650052742,0.13887802,91196.0,91182.0,0.00016452]
[1763650052950,0.13771,91183.0,91182.0,0.00016452]
[1763650053145,0.13990802,91183.0,91152.0,0.3608]
[1763650053346,0.3608,91176.0,91163.0,0.3608]
[1763650053552,0.00219802,91183.0,91182.0,0.1784073]
[1763650053752,0.3608,91208.0,91182.0,0.40028268]
[1763650053946,0.3608,91199.0,91195.0,0.0109757]
[1763650054152,0.3608,91199.0,91196.0,0.00073268]
[1763650054346,0.13771,91197.0,91196.0,0.00073268]
[1763650054546,0.13990802,91197.0,91188.0,0.00016452]
[1763650054748,0.06818,91190.0,91189.0,0.00073268]
[1763650054953,0.90070802,91190.0,91147.0,0.3608]
[1763650055258,0.3608,91154.0,91153.0,0.06317]
[1763650055456,0.36299802,91154.0,91140.0,0.03875]
[1763650055657,0.3608,91144.0,91141.0,0.00073268]
[1763650055863,0.13990802,91142.0,91141.0,0.00073268]
[1763650056162,0.00219802,91142.0,91141.0,0.00073268]
[1763650058063,0.00319802,91142.0,91141.0,0.00073268]
[1763650058456,0.02821537,91142.0,91141.0,0.00073268]
[1763650058656,0.00319802,91142.0,91141.0,0.00073268]
[1763650058852,0.07137802,91142.0,91132.0,0.00011061]
[1763650059053,0.00319802,91142.0,91133.0,0.00073268]
[1763650059263,0.02505676,91141.0,91133.0,0.00073268]
[1763650059458,0.00219802,91134.0,91133.0,0.00073268]
[1763650059759,0.00219802,91134.0,91133.0,0.12941268]
[1763650060664,0.00016452,91151.0,91150.0,0.0741513]
[1763650060863,0.00016452,91151.0,91150.0,0.14039398]
[1763650061166,0.00236254,91151.0,91150.0,0.12941268]
[1763650061369,0.09563687,91151.0,91150.0,0.00073268]
[1763650061569,0.16516687,91151.0,91150.0,0.00073268]
[1763650061955,0.16516687,91151.0,91139.0,0.0109826]
[1763650062160,0.00236254,91151.0,91150.0,0.00073268]
[1763650062561,0.02744797,91151.0,91150.0,0.00073268]
[1763650062869,0.02744797,91151.0,91150.0,0.01171398]
[1763650063571,0.02744797,91151.0,91150.0,0.00073268]
[1763650063769,0.02844797,91151.0,91150.0,0.00073268]
[1763650064362,0.02744797,91151.0,91150.0,0.00073268]
[1763650064667,0.02524995,91151.0,91150.0,0.12941268]
[1763650064864,0.00016452,91151.0,91150.0,0.12941268]
[1763650065261,0.00236254,91151.0,91150.0,0.00073268]
[1763650065462,0.02744341,91151.0,91150.0,0.00073268]
[1763650065667,0.00236254,91151.0,91150.0,0.01171398]
[1763650066072,0.00236254,91151.0,91150.0,0.00073268]
[1763650066873,0.00236254,91151.0,91150.0,0.12941268]
[1763650066874,0.00016452,91151.0,91150.0,0.12941268]
[1763650067569,0.00236254,91151.0,91150.0,0.00073268]
[1763650067762,0.07054254,91151.0,91150.0,0.00073268]
[1763650067967,0.16515628,91151.0,91150.0,0.00073268]
[1763650068973,0.06818,91133.0,91128.0,0.3608]
[1763650069270,0.07037802,91133.0,91132.0,0.00084329]
[1763650069673,0.00219802,91133.0,91132.0,0.00084329]
[1763650069970,0.13990802,91133.0,91132.0,0.00084329]
[1763650070165,0.00219802,91133.0,91132.0,0.06401329]
[1763650070467,0.00016452,91151.0,91132.0,0.00084329]
[1763650070670,0.00219802,91147.0,91143.0,0.03875]
[1763650070862,0.02506817,91146.0,91144.0,0.00073268]
[1763650071062,0.16497619,91145.0,91144.0,0.00073268]
[1763650071467,0.16497619,91145.0,91132.0,0.00011061]
[1763650071676,0.3608,91139.0,91133.0,0.00073268]
[1763650071970,0.02506817,91144.0,91133.0,0.00073268]
[1763650071971,0.00016452,91151.0,91146.0,0.0109817]
[1763650072271,0.00016452,91151.0,91137.0,0.3608]
[1763650072272,0.02725899,91150.0,91147.0,0.00073268]
[1763650072472,0.06818,91148.0,91147.0,0.00073268]
[1763650072674,0.09543899,91148.0,91147.0,0.00073268]
[1763650074078,0.09543899,91148.0,91147.0,0.14039438]
[1763650074079,0.02725899,91148.0,91147.0,0.14039438]
[1763650074465,0.00219802,91148.0,91147.0,0.14039438]
[1763650074669,0.00016452,91151.0,91150.0,0.1396613]
[1763650074976,0.00236254,91151.0,91150.0,0.12941268]
[1763650075870,0.00236254,91151.0,91150.0,0.13041268]
[1763650076276,0.0389054,91173.0,91172.0,0.1396587]
[1763650076478,0.08877052,91175.0,91174.0,0.12868]
[1763650076778,0.3608,91198.0,91185.0,0.010977]
[1763650076961,0.00219802,91188.0,91186.0,0.00073268]
[1763650077160,0.02512331,91187.0,91186.0,0.00073268]
[1763650077360,0.02732133,91187.0,91186.0,0.00073268]
[1763650077561,0.16503133,91187.0,91186.0,0.00073268]
[1763650078972,0.16503133,91187.0,91177.0,0.00016452]
[1763650078973,0.06818,91178.0,91177.0,0.00016452]
[1763650079273,0.02732133,91178.0,91177.0,0.0008972]
[1763650080475,0.00219802,91178.0,91177.0,0.0008972]
[1763650080664,0.3608,91190.0,91189.0,0.12868]
[1763650080865,0.52583379,91190.0,91189.0,0.00073268]
[1763650081068,0.52583379,91190.0,91177.0,0.00016452]
[1763650081069,0.13771,91178.0,91177.0,0.00016452]
[1763650081273,0.13771,91175.0,91174.0,0.001]
[1763650081475,0.02732379,91175.0,91174.0,0.12941268]
[1763650081675,0.02512577,91175.0,91174.0,0.12941268]
[1763650081887,0.3608,91190.0,91174.0,0.00073268]
[1763650081888,0.3608,91181.0,91174.0,0.00073268]
[1763650082175,0.13771,91171.0,91152.0,0.39955]
[1763650082475,0.12875,91162.0,91161.0,0.00073268]
[1763650082681,0.02734507,91162.0,91161.0,0.00073268]
[1763650082979,0.02734507,91162.0,91161.0,0.13947268]
[1763650083175,0.02734507,91162.0,91161.0,0.06546268]
[1763650083377,0.51689507,91162.0,91161.0,0.00073268]
[1763650084075,0.51689507,91162.0,91152.0,0.00011061]
[1763650084076,0.12875,91153.0,91152.0,0.00011061]
[1763650084278,0.12875,91153.0,91124.0,0.3608]
[1763650084279,0.03636,91152.0,91124.0,0.3608]
[1763650084474,0.3608,91143.0,91126.0,0.0109842]
[1763650084671,0.02734507,91142.0,91127.0,0.00073268]
[1763650084871,0.3608,91135.0,91127.0,0.00073268]
[1763650085075,0.12875,91121.0,91120.0,0.00011386]
[1763650085276,0.13094802,91121.0,91120.0,0.00011386]
[1763650085473,0.15606919,91121.0,91108.0,0.0109863]
[1763650085678,0.3608,91115.0,91108.0,0.01171898]
[1763650085884,0.00219802,91109.0,91108.0,0.00073268]
[1763650086475,0.00229627,91109.0,91108.0,0.00073268]
[1763650087677,0.00229627,91109.0,91108.0,0.01171908]
[1763650087879,0.00229627,91109.0,91108.0,0.00073268]
[1763650088680,0.00229627,91109.0,91108.0,0.06546268]
[1763650089681,0.00016462,91130.0,91124.0,0.12776]
[1763650089980,0.00016462,91130.0,91129.0,0.00073268]
[1763650089981,0.06514264,91130.0,91129.0,0.00073268]
[1763650090181,0.12875,91122.0,91121.0,0.3608]
[1763650090380,0.13094802,91122.0,91121.0,0.00073268]
[1763650090782,0.06278,91114.0,91113.0,0.3608]
[1763650091079,0.13094802,91114.0,91113.0,0.36153268]
[1763650091286,0.13094802,91114.0,91113.0,0.00073268]
[1763650091483,0.49174802,91114.0,91081.0,0.3608]
[1763650091786,0.12875,91085.0,91084.0,0.00073268]
[1763650092000,0.00225013,91085.0,91084.0,0.00073268]
[1763650092284,0.00225013,91085.0,91084.0,0.12849268]
[1763650092488,0.06503013,91085.0,91084.0,0.00073268]
[1763650092878,0.13100013,91085.0,91084.0,0.00073268]
[1763650094890,0.00225013,91085.0,91076.0,0.3608]
[1763650095090,0.06503013,91085.0,91084.0,0.00073268]
[1763650095284,0.06278,91077.0,91076.0,0.3608]
[1763650095474,0.13094802,91077.0,91076.0,0.00073268]
[1763650095678,0.12875,91067.0,91064.0,0.0109916]
[1763650095993,0.06497802,91067.0,91066.0,0.00081321]
[1763650096177,0.06497802,91067.0,91066.0,8.053e-05]
[1763650096178,0.13094802,91067.0,91066.0,8.053e-05]
[1763650096377,0.06278,91051.0,91050.0,0.3608]
[1763650096690,0.06278,91051.0,91050.0,0.00073268]
[1763650096691,0.13094802,91051.0,91050.0,0.00073268]
[1763650097385,0.06497802,91051.0,91050.0,0.00073268]
[1763650097585,0.00219802,91051.0,91050.0,0.43725608]
[1763650097888,0.00219802,91051.0,91050.0,0.50028608]
[1763650098275,0.00016471,91060.0,91059.0,0.1387523]
[1763650098478,0.3608,91084.0,91080.0,0.0109897]
[1763650098689,0.00219802,91083.0,91079.0,0.0109898]
[1763650098890,0.18075817,91100.0,91067.0,0.3608]
[1763650098891,0.01108644,91104.0,91103.0,0.075717]
[1763650099186,0.07606446,91104.0,91103.0,0.00073268]
[1763650099394,0.01108644,91104.0,91103.0,0.12849268]
[1763650099687,8.053e-05,91104.0,91103.0,0.12849268]
[1763650099888,0.00227855,91104.0,91103.0,0.12849268]
[1763650100192,0.00327855,91104.0,91103.0,0.06546268]
[1763650100378,0.13202855,91104.0,91103.0,0.00073268]
[1763650100580,0.06605855,91104.0,91103.0,0.00073268]
[1763650100780,0.06705855,91104.0,91103.0,0.00073268]
[1763650101381,0.00327855,91104.0,91103.0,0.00073268]
[1763650101589,0.06505855,91104.0,91103.0,0.00073268]
[1763650101791,0.00227855,91104.0,91103.0,0.00073268]
[1763650102188,0.00227855,91104.0,91103.0,0.12849268]
[1763650102391,0.49182855,91104.0,91103.0,0.00073268]
[1763650102585,0.12875,91095.0,91094.0,0.00016471]
[1763650102787,0.13094802,91095.0,91094.0,0.00089739]
[1763650103089,0.00219802,91095.0,91094.0,0.12865739]
[1763650103495,0.00108053,91104.0,91103.0,0.138747]
[1763650103685,0.00108053,91104.0,91103.0,0.13947968]
[1763650103880,8.053e-05,91104.0,91103.0,0.13947968]
[1763650104083,8.053e-05,91104.0,91103.0,0.00073268]
[1763650104084,0.00227855,91104.0,91103.0,0.00073268]
[1763650104280,0.06505855,91104.0,91103.0,0.00073268]
[1763650104482,0.12875,91095.0,91094.0,0.00016471]
[1763650104681,0.49174802,91095.0,91094.0,0.00016471]
[1763650106686,0.49174802,91095.0,91085.0,0.0109891]
[1763650106893,0.49274802,91095.0,91085.0,0.0109891]
[1763650107092,0.3608,91087.0,91079.0,0.01172258]
[1763650107289,0.3608,91087.0,91085.0,0.01172178]
[1763650107588,0.12875,91080.0,91073.0,0.3608]
[1763650107787,0.00219802,91074.0,91073.0,0.36153268]
[1763650109182,0.12470802,91074.0,91073.0,0.36153268]
[1763650109399,0.12470802,91074.0,91073.0,0.00073268]
[1763650109893,0.11612,91063.0,91062.0,0.3608]
[1763650110199,0.00219802,91063.0,91062.0,0.36153268]
[1763650110490,0.00219802,91063.0,91062.0,0.00073268]
[1763650110888,0.11831802,91063.0,91062.0,0.00073268]
[1763650111197,0.11831802,91063.0,91043.0,1.8608]
[1763650111198,0.03294,91062.0,91043.0,1.8608]
[1763650111496,0.00227855,91061.0,91058.0,0.0109923]
[1763650111694,0.11839855,91061.0,91060.0,0.00073268]
[1763650112199,0.05866855,91061.0,91060.0,0.00073268]
[1763650112393,0.05866855,91061.0,91051.0,0.3608]
[1763650112698,0.00227855,91061.0,91060.0,0.0109922]
[1763650112896,0.00227855,91061.0,91060.0,0.01172488]
[1763650113783,8.053e-05,91061.0,91060.0,0.12547488]
[1763650114190,0.00227855,91061.0,91060.0,0.12547488]
[1763650114596,0.00327855,91061.0,91060.0,0.00073268]
[1763650114798,0.00327855,91061.0,91060.0,0.01172488]
[1763650114988,0.00327855,91061.0,91060.0,0.00073268]
[1763650115294,0.05973855,91061.0,91060.0,0.00073268]
[1763650115498,0.00327855,91061.0,91060.0,0.11448268]
[1763650115798,0.00327855,91061.0,91060.0,0.06994488]
[1763650116200,0.00327855,91061.0,91060.0,0.00073268]
[1763650116497,8.053e-05,91061.0,91060.0,0.11448268]
[1763650116704,0.00227855,91061.0,91060.0,0.11448268]
[1763650117286,0.00227855,91061.0,91060.0,0.00073268]
[1763650117496,0.00227855,91061.0,91043.0,1.5]
[1763650117497,0.11582,91044.0,91043.0,1.5]
[1763650117686,0.11801802,91044.0,91043.0,1.50073268]
[1763650117887,0.11801802,91044.0,91043.0,0.00073268]
[1763650118091,0.11582,91037.0,91025.0,0.10788]
[1763650118284,0.00219802,91037.0,91036.0,0.11929268]
[1763650119193,0.00219802,91037.0,91036.0,0.01653778]
[1763650119393,0.11801802,91037.0,91036.0,0.00554268]
[1763650119791,0.14312666,91037.0,91036.0,0.00554268]
[1763650120491,0.11801802,91037.0,91036.0,0.00554268]
[1763650120897,0.1441284,91037.0,91036.0,0.00554268]
[1763650121200,0.1441284,91037.0,91036.0,0.01653778]
[1763650121394,0.1431284,91037.0,91036.0,0.01653778]
[1763650121598,0.11801802,91037.0,91036.0,0.01653778]
[1763650122095,0.11801802,91037.0,91036.0,0.00554268]
[1763650122301,0.1431205,91037.0,91036.0,0.00554268]
[1763650122498,0.11801802,91037.0,91036.0,0.00554268]
[1763650122702,0.00219802,91037.0,91036.0,0.11929268]
[1763650123199,0.00319802,91037.0,91036.0,0.00554268]
[1763650123697,0.05965802,91037.0,91036.0,0.01653778]
[1763650123998,0.00219802,91037.0,91036.0,0.13028778]
[1763650124399,8.053e-05,91044.0,91043.0,0.1247442]
[1763650124594,0.00227855,91044.0,91043.0,0.48627688]
[1763650125197,8.053e-05,91044.0,91043.0,0.48627688]
[1763650126799,0.00016471,91053.0,91052.0,0.1570031]
[1763650127098,0.3608,91061.0,91060.0,0.11375]
[1763650127294,0.36299802,91061.0,91060.0,0.05895268]
[1763650127803,0.50392553,91061.0,91060.0,0.00073268]
[1763650128201,0.50392553,91061.0,91051.0,0.00016471]
[1763650128202,0.05646,91052.0,91051.0,0.00016471]
[1763650128405,0.05646,91052.0,91051.0,0.00089739]
[1763650128406,0.05865802,91052.0,91051.0,0.00089739]
[1763650128703,0.00219802,91052.0,91051.0,0.00089739]
[1763650129495,0.00319802,91052.0,91051.0,0.00089739]
[1763650129695,0.001,91052.0,91051.0,0.47544739]
[1763650130098,0.00419802,91052.0,91051.0,0.47544739]
[1763650130301,0.12001802,91052.0,91051.0,0.00089739]
[1763650130605,0.1451506,91052.0,91051.0,0.00089739]
[1763650131508,0.0293306,91052.0,91051.0,0.05911739]
[1763650131810,0.0293306,91052.0,91051.0,0.11464739]
[1763650131811,0.00419802,91052.0,91051.0,0.11464739]
[1763650131999,0.00419802,91052.0,91051.0,0.47544739]
[1763650132191,0.00419802,91052.0,91051.0,0.41991739]
[1763650132390,0.00419802,91052.0,91051.0,0.11464739]
[1763650132607,0.08584231,91052.0,91051.0,0.00089739]
[1763650132998,0.00419802,91052.0,91051.0,0.11464739]
[1763650133507,0.02938991,91052.0,91051.0,0.11464739]
[1763650134005,0.14520991,91052.0,91051.0,0.00089739]
[1763650135309,0.08584991,91052.0,91051.0,0.01189069]
[1763650135500,0.14520991,91052.0,91051.0,0.00089739]
[1763650135701,0.14420991,91052.0,91051.0,0.00089739]
[1763650135904,0.14520991,91052.0,91051.0,0.00089739]
[1763650136300,0.14520991,91052.0,91051.0,0.11464739]
[1763650136301,0.02938991,91052.0,91051.0,0.11464739]
[1763650136608,0.02719189,91052.0,91051.0,0.47544739]
[1763650136997,0.02938991,91052.0,91051.0,0.47544739]
[1763650137398,0.14520991,91052.0,91051.0,0.00089739]
[1763650137605,0.14520991,91052.0,91051.0,0.01189069]
[1763650138205,0.14520991,91052.0,91051.0,0.00089739]
[1763650139099,0.14520991,91052.0,91036.0,0.00481]
[1763650139301,0.11582,91038.0,91037.0,0.00073268]
[1763650139507,0.14329966,91038.0,91037.0,0.00073268]
[1763650140413,0.14329966,91038.0,91037.0,0.11448268]
[1763650140414,0.02528164,91038.0,91037.0,0.11448268]
[1763650140711,0.02747966,91038.0,91037.0,0.11448268]
[1763650141103,0.00016471,91047.0,91046.0,0.1247439]
[1763650141406,0.00804,91072.0,91046.0,0.1247439]
[1763650141407,0.0389054,91071.0,91070.0,0.124741]
[1763650141610,0.11801802,91071.0,91070.0,0.00073268]
[1763650141808,0.11801802,91071.0,91064.0,0.3608]
[1763650141809,0.03436,91050.0,91037.0,0.3608]
[1763650142019,0.03436,91050.0,91027.0,0.0109961]
[1763650142020,0.11582,91037.0,91027.0,0.0109961]
[1763650142310,0.10943,91007.0,91005.0,0.00013674]
[1763650142510,0.10943,91006.0,91005.0,0.00013674]
[1763650142722,0.10943,90998.0,90997.0,0.36096482]
[1763650143018,0.11162802,90998.0,90997.0,0.0008975]
[1763650143405,0.3608,91011.0,90997.0,0.4707875]
[1763650143599,0.00219802,91011.0,91010.0,0.0109982]
[1763650143804,0.00229167,91011.0,91010.0,0.00073268]
[1763650144000,0.11172167,91011.0,91010.0,0.00073268]
[1763650144208,0.00229167,91011.0,91010.0,0.00073268]
[1763650145100,0.00229167,91011.0,91010.0,0.10982268]
[1763650145304,9.365e-05,91011.0,91010.0,0.10982268]
[1763650145613,0.3608,91044.0,91012.0,0.0109979]
[1763650145614,0.10788,91042.0,91012.0,0.0109979]
[1763650145804,0.10943,91014.0,91013.0,0.00073268]
[1763650146004,0.11162802,91014.0,91013.0,0.00073268]
[1763650146205,0.11162802,91014.0,90998.0,0.10788]
[1763650146406,0.11162802,91014.0,90998.0,0.00073268]
[1763650146721,0.11162802,91014.0,90997.0,0.36096482]
[1763650146722,0.10943,90998.0,90997.0,0.00016482]
[1763650146900,0.10943,90987.0,90976.0,0.3718023]
[1763650147219,0.00219802,90986.0,90985.0,0.41054]
[1763650147416,0.00219802,90986.0,90985.0,0.48162388]
[1763650147708,0.00219802,90986.0,90985.0,0.37253388]
[1763650147915,0.00219802,90986.0,90985.0,0.47062268]
[1763650148115,0.00219802,90986.0,90985.0,0.10982268]
[1763650148305,0.00016482,90995.0,90985.0,0.10982268]
[1763650148502,0.00236284,90995.0,90994.0,0.0607402]
[1763650148715,0.00236284,90995.0,90994.0,0.06147288]
[1763650149016,0.00236284,90995.0,90994.0,0.00073268]
[1763650149204,0.11179284,90995.0,90994.0,0.00073268]
[1763650149608,0.10943,90994.0,90976.0,0.00016482]
[1763650149903,0.00236284,90995.0,90977.0,0.00073268]
[1763650149904,0.10943,90978.0,90977.0,0.00073268]
[1763650150105,0.11167111,90978.0,90977.0,0.00073268]
[1763650150310,0.10943,90977.0,90976.0,0.00016482]
[1763650150508,0.11162802,90977.0,90976.0,0.0008975]
[1763650150712,0.00219802,90977.0,90976.0,0.0008975]
[1763650150912,0.00219802,90977.0,90976.0,0.0616399]
[1763650151111,4.309e-05,90978.0,90976.0,0.1209899]
[1763650151308,4.309e-05,90978.0,90977.0,0.10909]
[1763650151508,4.309e-05,90978.0,90977.0,0.10982268]
[1763650152009,0.3608,91010.0,90994.0,0.1200902]
[1763650152206,0.3608,91010.0,91009.0,0.0607384]
[1763650152406,0.36299802,91010.0,91009.0,0.00073268]
[1763650152616,0.47242802,91010.0,90994.0,0.3608]
[1763650152915,0.10943,91005.0,91004.0,0.0109989]
[1763650153212,0.11162802,91005.0,91004.0,0.01173158]
[1763650153620,0.11162802,91005.0,91004.0,0.00073268]
[1763650154119,0.10943,90996.0,90995.0,0.00016482]
[1763650154320,0.47242802,90996.0,90973.0,0.3608]
[1763650154614,0.05442,90975.0,90974.0,0.00073268]
[1763650154808,0.00219802,90975.0,90974.0,0.00073268]
[1763650155320,0.00016482,90984.0,90983.0,0.0110015]
[1763650155510,0.11179284,90984.0,90983.0,0.00073268]
[1763650156111,0.11179284,90984.0,90973.0,0.3608]
[1763650156311,0.11179284,90984.0,90975.0,0.0110025]
[1763650156507,0.00236284,90984.0,90983.0,0.10982268]
[1763650156707,0.00016482,90984.0,90983.0,0.47062268]
[1763650157413,0.05442,91003.0,91002.0,0.0109992]
[1763650157613,0.00219802,91003.0,91002.0,0.10982268]
[1763650157818,0.00219802,91003.0,91002.0,0.00073268]
[1763650158018,0.11162802,91003.0,91002.0,0.00073268]
[1763650158218,0.00219802,91003.0,91002.0,0.48162188]
[1763650158418,0.3608,91027.0,91025.0,0.0109965]
[1763650158616,0.00219802,91027.0,91026.0,0.00073268]
[1763650158917,0.10943,91018.0,91017.0,0.00016482]
[1763650159120,0.11162802,91018.0,91017.0,0.0008975]
[1763650159320,0.47242802,91018.0,91017.0,4.82e-06]
[1763650159519,0.47242802,91018.0,91002.0,0.3608]
[1763650159708,0.10943,91003.0,91002.0,0.00073268]
[1763650159908,0.11162802,91003.0,91002.0,0.00073268]